Cogmind - Beta 16 @@@ ROGUE MODE // 2025.12.30 @ 00:22:35 Player: Bity Result: Destroyed by B-75 Beast with Magnetic Acceleration Cannon Performance ------------- Evolutions (4) 2000 Regions Visited (7) 1400 Robots Destroyed (78) 390 Value Destroyed (2394) 2394 Prototype IDs (4) 80 Alien Tech Used (0) 0 Bonus (202) 202 TOTAL SCORE: 6466 Bonus ------- Follower Combat Kills 325 Met Imprinter 300 Was Imprinted 300 Friendly Fire -723 Cogmind --------- Core Integrity 0/850 Matter 31/300 Energy 98/100 System Corruption 7% Temperature Cool (0) Movement Core (50) Location -6/Factory Parts ------- > --- POWER (2) -------- (None) > --- PROPULSION (5) --- (None) > --- UTILITY (5) ------ (None) > --- WEAPON (3) ------- (None) > --- INVENTORY (5) ---- Scrap Suit Gauss Rifle Heavy Flak Cannon CR-A16's Pointy Stick Peak State ------------ > --- POWER ------------ Light Fission Core > --- PROPULSION ------- Improved Carbon-fiber Leg Improved Carbon-fiber Leg Improved Carbon-fiber Leg Flexi-carbon Leg Flexi-carbon Leg > --- UTILITY ---------- Huge Storage Unit Machine Analyzer Visual Processing Unit Advanced Sensor Array Hacking Suite > --- WEAPON ----------- Precision Grenade Launcher Remote Datajack Power Sword > --- INVENTORY -------- Micro Nuclear Core Fission Core Fission Core Light Fission Core Improved Carbon-fiber Leg Flexi-carbon Leg Compact Wheel Compact Wheel Compact Wheel Armored Wheel Scrap Suit Enhanced Optical Array Transmission Jammer EM Disruption Field Improved Hardlight Generator Field Recycling Unit Heavy Plasma Cannon Gauss Rifle Heavy Flak Cannon Heavy Rocket Launcher Heavy Rocket Launcher Precision Grenade Launcher CR-A16's Pointy Stick [Rating: 64] Favorites ----------- Power Improved Ion Engine Engine Improved Ion Engine Power Core Light Fission Core Propulsion Light Treads Treads Light Treads Leg Improved Carbon-fiber Leg Wheel Compact Wheel Utility Huge Storage Unit Device Seismic Detector Storage Huge Storage Unit Processor Visual Processing Unit Hackware Hacking Suite Weapon Light Assault Rifle Energy Gun Improved Medium Laser Energy Cannon Advanced Beam Cannon Ballistic Gun Light Assault Rifle Ballistic Cannon Heavy Flak Cannon Launcher Precision Grenade Launcher Special Weapon Remote Datajack Slashing Weapon Phasing Sabre Piercing Weapon Heavy Pick Build | -11 -10 -10 -9 -9 -7 -6 -6 ------- Run | Yrd Mat Min Mat Min Zio Pro Fac Slots Evolved 8 | . . . 2 . . . 6 Power 1 | . . . . . . . 1 Propulsion 3 | . . . 1 . . . 2 Utility 3 | . . . 1 . . . 2 Weapon 1 | . . . . . . . 1 Parts Attached 74 | 2 4 2 15 1 3 2 45 Power 12 | . . 1 1 . . 1 9 Engine 5 | . . 1 1 . . 1 2 Core 7 | . . . . . . . 7 Reactor . | . . . . . . . . Propulsion 32 | . 2 1 9 1 . . 19 Treads 7 | . . . 5 1 . . 1 Leg 13 | . . . 3 . . . 10 Wheel 12 | . 2 1 1 . . . 8 Hover . | . . . . . . . . Flight . | . . . . . . . . Utility 13 | 1 1 . 2 . . 1 8 Device 5 | 1 . . 1 . . 1 2 Storage 3 | . 1 . . . . . 2 Processor 3 | . . . 1 . . . 2 Hackware 2 | . . . . . . . 2 Protection . | . . . . . . . . Artifact . | . . . . . . . . Weapon 17 | 1 1 . 3 . 3 . 9 Energy Gun 1 | . . . 1 . . . . Energy Cannon 1 | . . . 1 . . . . Ballistic Gun 4 | 1 1 . 1 . . . 1 Ballistic Cannon 1 | . . . . . . . 1 Launcher 4 | . . . . . 3 . 1 Special Weapon 1 | . . . . . . . 1 Impact Weapon . | . . . . . . . . Slashing Weapon 4 | . . . . . . . 4 Piercing Weapon 1 | . . . . . . . 1 Special Melee Weapon . | . . . . . . . . Unidentified Prototypes 4 | . . . 3 . 1 . . Parts Lost 42 | . 1 1 5 . . 1 34 Power 9 | . . 1 . . . 1 7 Propulsion 22 | . 1 . 4 . . . 17 Utility 3 | . . . 1 . . . 2 Weapon 8 | . . . . . . . 8 Highest Loss Streak 13 | . 1 1 2 . . 1 13 To Critical Strikes . | . . . . . . . . Average Backups 21 | 5 9 13 18 22 23 23 23 Power 2 | 1 1 2 3 4 4 3 1 Propulsion 8 | 4 4 6 6 9 9 9 7 Utility 4 | . 1 2 3 3 4 4 5 Weapon 5 | . . 1 3 4 5 6 7 Tool/Special . | . . . . . . . . Unused Backups 28 | 7 . 1 1 . 1 . 18 Power 6 | 1 . 1 . . . . 4 Propulsion 5 | 2 . . . . . . 3 Utility 7 | 1 . . . . . . 6 Weapon 9 | 3 . . 1 . 1 . 4 Tool/Special 1 | . . . . . . . 1 Average Slot Usage (%) 95 | . 94 100 97 100 100 100 88 Engine 8 | . 14 14 11 11 11 11 2 Core 2 | . . . . . . . 7 Treads 22 | . . . 21 33 33 33 10 Leg 3 | . . . 2 . . . 10 Wheel 6 | . 22 28 8 . . . 10 Device 9 | . 14 14 16 11 11 11 5 Storage 9 | . 14 14 11 11 11 11 5 Processor 10 | . . . 4 11 11 11 12 Hackware 1 | . . . . . . . 5 Ballistic Gun 7 | . 28 28 20 22 2 . 1 Launcher 8 | . . . . . 19 22 . Slashing Weapon 2 | . . . . . . . 8 Peak Build Rating 64 | 7 8 9 21 15 23 24 64 Average Rating 28 | 6 7 8 16 14 21 23 50 On Entrance 12 | 6 7 7 9 12 15 23 24 Avg Prop Armor Cover (%) 19 | . . . 16 . . . 19 Naked Turns 14 | . . . . . . . 14 Heaviest Build 110 | 11 86 86 91 90 101 97 110 Greatest Support 94 | 20 26 26 60 60 60 60 94 Greatest Overweight (x) 29 | . 5 3 29 1 1 1 9 Average Overweight (x) 1 | . 3 3 3 1 1 1 2 Largest Inventory Capacity 25 | 8 25 25 25 25 25 25 25 Average Capacity 24 | 8 24 25 25 25 25 25 24 Most Carried 25 | 6 13 16 21 25 25 25 25 Average Carried 22 | 5 9 13 18 22 24 24 24 Final Capacity 25 | 8 25 25 25 25 25 25 5 Final Carried 25 | 5 13 16 20 25 25 25 5 Class Distribution -------------------- 78% | Scavenger-Mutant 21% | Mutant Dominant Class ---------------- Mutant | -10/Materials Mutant | -10/Mines Scavenger-Mutant | -9/Materials Scavenger-Mutant | -9/Mines Scavenger-Mutant | -7/Zion Mutant | -6/Proximity Caves Scavenger-Mutant | -6/Factory Resources | -11 -10 -10 -9 -9 -7 -6 -6 ----------- Run | Yrd Mat Min Mat Min Zio Pro Fac Matter Collected 1421 | 250 81 15 209 154 30 42 640 Remotely . | . . . . . . . . Salvage Created 2957 | 133 200 . 495 181 . 28 1920 Parts 163 | 14 11 . 32 9 . 4 93 Haulers Intercepted 2 | . 1 . 1 . . . . Recyclers Shooed 4 | . . . . 2 . . 2 Parts Field Recycled . | . . . . . . . . Retrieved Matter . | . . . . . . . . Parts Self-Destructed 12 | . . . . . . 12 . Prevented 2 | . . . . . . 2 . Parts Restored . | . . . . . . . . Kills | -11 -10 -10 -9 -9 -7 -6 -6 ------- Run | Yrd Mat Min Mat Min Zio Pro Fac Combat Hostiles Destroyed 51 | . 5 . 12 . . 2 32 Melee 14 | . . . . . . . 14 Guns 17 | . 5 . 12 . . . . Cannons 2 | . . . . . . . 2 AOE 18 | . . . . . . 2 16 Classes Destroyed 17 | 2 3 . 2 2 . . 8 Worker 3 | . . . . 1 . . 2 Builder 2 | . . . . 1 . . 1 Tunneler 4 | 4 . . . . . . . Hauler 2 | . 1 . 1 . . . . Recycler 7 | 1 . . 1 2 . . 3 Mechanic 2 | . . . . . . . 2 Operator 1 | . . . . . . . 1 Watcher 4 | . . . . . . . 4 Swarmer 15 | . 3 . 6 . . 2 4 Saboteur 2 | . . . . . . . 2 Grunt 17 | . 2 . 4 . . . 11 Duelist 1 | . . . 1 . . . . Sentry 2 | . . . 1 . . . 1 Specialist 1 | . . . . . . . 1 Hunter 6 | . . . . . . . 6 Programmer 7 | . . . . . . . 7 Mutant 2 | . . . . . . . 2 Best Kill Streak 13 | 3 3 . 4 3 . 2 13 Combat Bots Only 10 | . 3 . 4 . . 2 10 Max Kills in Single Turn 5 | 1 1 . 1 1 . 2 5 Gunslinging . | . . . . . . . . Exploded 3 | . . . . . . 2 3 Melee 1 | . . . . . . . 1 Uniques/NPCs Destroyed . | . . . . . . . . Combat | -11 -10 -10 -9 -9 -7 -6 -6 -------- Run | Yrd Mat Min Mat Min Zio Pro Fac Hostile Shots Fired 466 | . 43 3 90 . . 3 327 Missed 135 | . 13 2 15 . . 2 103 Hits 331 | . 30 1 75 . . 1 224 Melee 3 | . . . 3 . . . . Projectile 328 | . 30 1 72 . . 1 224 AOE 2 | . . . . . . . 2 Critical Strikes 11 | . . . 4 . . . 7 Part Disruptions 1 | . . . . . . . 1 Damage Taken 5305 | . 269 12 873 . . 68 4083 Core 1102 | . 103 . 149 . . . 850 Absorbed by Shields . | . . . . . . . . Regen/Repaired (Parts) 215 | . . . . . . . 215 Core Remaining (%) 73 | 100 . 58 . . . 62 . Volleys Fired 146 | 15 23 . 50 27 . 1 30 Largest 2 | 2 2 . 2 2 . 2 2 Hottest 124 | 40 40 . 124 40 . 75 75 Shots Fired 272 | 30 46 . 100 54 . 2 40 Gun 237 | 30 46 . 97 54 . . 10 Cannon 12 | . . . 3 . . . 9 Launcher 17 | . . . . . . 2 15 Special 6 | . . . . . . . 6 Kinetic 243 | 30 46 . 94 54 . . 19 Thermal 6 | . . . 6 . . . . Explosive 17 | . . . . . . 2 15 Electromagnetic . | . . . . . . . . Robot Hit Streak 14 | 10 7 . 14 9 . . 7 Robot Miss Streak 5 | 2 4 . 3 4 . . 5 Penetration Max . | . . . . . . . . Secondary Targets 4 | . 2 . 2 . . . . Max Gunslinging Chain 1 | . 1 . 1 . . . . Shots Hit Robots 239 | 21 28 . 72 34 . . 84 Core Hits 155 | 10 16 . 33 13 . 3 80 Critical Kills . | . . . . . . . . Critical Parts Destroyed 2 | . . . . 1 . . 1 Critical Strikes 8 | . . . . 1 . . 7 Destroy 2 | . . . . 1 . . 1 Sever 6 | . . . . . . . 6 Melee Attacks 112 | . . . . . . . 112 Impact . | . . . . . . . . Slashing 109 | . . . . . . . 109 Piercing 3 | . . . . . . . 3 Sneak Attacks 7 | . . . . . . . 7 Combat Hostiles . | . . . . . . . . Follow-up Attacks 5 | . . . . . . . 5 Damage Inflicted 8232 | 172 218 . 632 284 . 203 6723 Guns 1411 | 172 218 . 590 284 . . 147 Cannons 147 | . . . 42 . . . 105 Explosions 3730 | . . . . . . 203 3527 Melee 2944 | . . . . . . . 2944 Ramming . | . . . . . . . . Kinetic 1484 | 172 218 . 558 284 . . 252 Thermal 74 | . . . 74 . . . . Explosive 3730 | . . . . . . 203 3527 Electromagnetic . | . . . . . . . . Impact . | . . . . . . . . Slashing 2944 | . . . . . . . 2944 Piercing . | . . . . . . . . Highest Corruption 7 | . . . . . . . 7 Average Corruption 4 | . . . . . . . 4 Corruption Purged . | . . . . . . . . Corruption Blocked . | . . . . . . . . Effects 57 | . . . . . . . 57 Message Errors 9 | . . . . . . . 9 Matter Fused 10 | . . . . . . . 10 Heat Flow Errors 10 | . . . . . . . 10 Energy Discharges 9 | . . . . . . . 9 Parts Rejected 1 | . . . . . . . 1 Parts Fused 1 | . . . . . . . 1 Data Loss (minor) 7 | . . . . . . . 7 Data Loss (major) 6 | . . . . . . . 6 Misfires 1 | . . . . . . . 1 Alerts 2 | . . . . . . . 2 Weapon Failures 1 | . . . . . . . 1 Overload Shots . | . . . . . . . . Overflow Damage 733 | . . . . . . . 733 Projectiles . | . . . . . . . . Explosions 247 | . . . . . . . 247 Melee 486 | . . . . . . . 486 Knockbacks 5 | . . . . . . . 5 Impact . | . . . . . . . . Kinetic 5 | . . . . . . . 5 Secondary . | . . . . . . . . Self-Inflicted Damage 284 | . . . . . . 8 276 Shots 10 | . . . . . . 1 9 Rammed . | . . . . . . . . Targets Rammed . | . . . . . . . . Kicked . | . . . . . . . . Crushed . | . . . . . . . . Highest Temperature 255 | . 12 . 171 . . 9 255 Average Temperature 63 | . 7 . 33 . . 6 86 Received Heat Transfer 1021 | . 39 6 309 . . 12 655 Siege Activations . | . . . . . . . . Martial Activations . | . . . . . . . . Shielding Activations . | . . . . . . . . Robots Disrupted . | . . . . . . . . Combat Hostiles . | . . . . . . . . Robots Corrupted . | . . . . . . . . Combat Hostiles . | . . . . . . . . Parts Fried . | . . . . . . . . Impact Corruptions . | . . . . . . . . Robots Melted . | . . . . . . . . Combat Hostiles . | . . . . . . . . Parts Melted 2 | . . . 2 . . . . Heat Transferred 148 | . . . 148 . . . . Parts Sabotaged . | . . . . . . . . Parts Stolen . | . . . . . . . . Parts Stripped . | . . . . . . . . Power Chain Reactions . | . . . . . . . . Alert | -11 -10 -10 -9 -9 -7 -6 -6 ------- Run | Yrd Mat Min Mat Min Zio Pro Fac Maximum Alert Level 1 | . . . . . . . 1 Low Security (%) 99 | 100 100 100 100 100 . . 99 Level 1 . | . . . . . . . . Level 2 . | . . . . . . . . Level 3 . | . . . . . . . . Level 4 . | . . . . . . . . Level 5 . | . . . . . . . . High Security . | . . . . . . . . Max Security . | . . . . . . . . Peak Influence 334 | 10 56 132 171 44 . . 334 Initial 47 | . . . 47 43 . . . Average 42 | 1 19 27 90 6 . . 48 Influence Increases 2256 | 25 159 220 416 64 . 248 1124 Destroy 0b10 Robot/C 1360 | . 100 160 240 40 . 160 660 Destroy 0b10 Robot/NC 130 | 25 5 . 15 20 . . 65 Destroy Leader 284 | . 22 30 64 . . 20 148 Allied During Kill 125 | . . 30 1 4 . 68 22 Successful Hack 38 | . 32 . 6 . . . . Disable Machine 45 | . . . . . . . 45 Destroy Structure 124 | . . . . . . . 124 Lose Combat Pursuer 150 | . . . 90 . . . 60 Influence Decreases 1933 | 25 159 98 426 176 . 248 801 Entered New Map 144 | . . . 75 69 . . . Time Decay 1329 | 25 149 98 291 107 . 218 441 Lost Part 400 | . 10 . 40 . . 10 340 Lost Ally 60 | . . . 20 . . 20 20 Squads Dispatched 12 | . 1 . 1 . . . 10 Investigation 3 | . 1 . . . . . 2 Extermination 6 | . . . . . . . 6 Reinforcement 3 | . . . 1 . . . 2 Assault . | . . . . . . . . Garrison . | . . . . . . . . Intercept . | . . . . . . . . Searches Triggered . | . . . . . . . . Construction Impeded . | . . . . . . . . Haulers Reinforced . | . . . . . . . . Active Scanning Responses . | . . . . . . . . Cargo Convoy Interrupts 1 | . . . . . . . 1 Stealth | -11 -10 -10 -9 -9 -7 -6 -6 --------- Run | Yrd Mat Min Mat Min Zio Pro Fac Distress Signals 6 | . 1 . 3 . . . 2 Communications Jammed 2 | . . . . . . . 2 Distress Signals . | . . . . . . . . Times Spotted 111 | . 15 5 29 . . 6 56 Peak Tracking Total 9 | . 8 3 6 . . 4 9 Tactical Retreats 9 | . . . 5 . . . 4 Traps | -11 -10 -10 -9 -9 -7 -6 -6 ------- Run | Yrd Mat Min Mat Min Zio Pro Fac Traps Triggered 4 | . . . . . . . 4 Indirectly . | . . . . . . . . Trap Hack Attempts . | . . . . . . . . Triggered . | . . . . . . . . Disarmed . | . . . . . . . . Reprogrammed . | . . . . . . . . Reused . | . . . . . . . . Traps Extracted . | . . . . . . . . Installed . | . . . . . . . . Triggered . | . . . . . . . . Machines | -11 -10 -10 -9 -9 -7 -6 -6 ---------- Run | Yrd Mat Min Mat Min Zio Pro Fac Machines Disabled 3 | . . . . . . . 3 Max in Single Turn 2 | . . . . . . . 2 Machines Repaired . | . . . . . . . . Machines Dismantled . | . . . . . . . . Machines Sabotaged . | . . . . . . . . Overloaded Fab Kills . | . . . . . . . . Hacking | -11 -10 -10 -9 -9 -7 -6 -6 --------- Run | Yrd Mat Min Mat Min Zio Pro Fac Machines Accessed 16 | . 4 . 3 1 . . 8 Terminals 8 | . 4 . 2 1 . . 1 Fabricators . | . . . . . . . . Repair Stations 3 | . . . . . . . 3 Recycling Units 2 | . . . 1 . . . 1 Scanalyzers 3 | . . . . . . . 3 Garrison Access . | . . . . . . . . Total Hacks 50 | . 18 . 8 5 . . 19 Successful 29 | . 10 . 5 3 . . 11 Failed 21 | . 8 . 3 2 . . 8 Catastrophic 1 | . . . . . . . 1 Database Lockouts . | . . . . . . . . Manual 24 | . 12 . 4 5 . . 3 Terminals 31 | . 18 . 7 5 . . 1 Fabricators . | . . . . . . . . Repair Stations 7 | . . . . . . . 7 Recycling Units 4 | . . . 1 . . . 3 Scanalyzers 8 | . . . . . . . 8 Garrison Access . | . . . . . . . . Terminal Hacks 9 | . 5 . 1 2 . . 1 Open DSF 1 | . . . . . . . 1 Emergency Access Points 1 | . . . 1 . . . . Terminal Index 2 | . 1 . . 1 . . . Dispatch Records 2 | . 2 . . . . . . Registered Components 1 | . 1 . . . . . . Zone Layout 2 | . 1 . . 1 . . . Fabricator Hacks . | . . . . . . . . Repair Station Hacks 4 | . . . . . . . 4 Scan Component 3 | . . . . . . . 3 Repair 1 | . . . . . . . 1 Recycling Unit Hacks 3 | . . . 1 . . . 2 Report Inventory 2 | . . . 1 . . . 1 Retrieve Components 1 | . . . . . . . 1 Scanalyzer 4 | . . . . . . . 4 Retrieve Study 4 | . . . . . . . 4 Garrison Access Hacks . | . . . . . . . . Unauthorized Hacks 9 | . 5 . 3 1 . . . Terminals 9 | . 5 . 3 1 . . . Botnet 7 | . 4 . 2 1 . . . Operators 2 | . 1 . 1 . . . . Fabricators . | . . . . . . . . Repair Stations . | . . . . . . . . Recycling Units . | . . . . . . . . Scanalyzers . | . . . . . . . . Garrison Access . | . . . . . . . . Data Cores Recovered 1 | . 1 . . . . . . Used 1 | . 1 . . . . . . Hacking Detections 13 | . 4 . 2 1 . . 6 Full Trace Events 3 | . 1 . . 1 . . 1 Feedback Events . | . . . . . . . . Feedback Blocked . | . . . . . . . . Robot Schematics Acquired 3 | . . . . . 3 . . Robots Built . | . . . . . . . . Authchips . | . . . . . . . . Time . | . . . . . . . . Total Robot Build Rating . | . . . . . . . . Part Schematics Acquired 15 | . . . . . 15 . . Parts Built . | . . . . . . . . Authchips . | . . . . . . . . Time . | . . . . . . . . Total Part Build Rating . | . . . . . . . . Part Studies Acquired 4 | . . . . . . . 4 Parts Repaired 1 | . . . . . . . 1 Time 26 | . . . . . . . 26 Parts Recycled . | . . . . . . . . Recycled Matter . | . . . . . . . . Retrieved Matter . | . . . . . . . . Retrieved Components 7 | . . . . . . . 7 Parts Scanalyzed . | . . . . . . . . Part Schematics Acquired . | . . . . . . . . Parts Damaged . | . . . . . . . . Bothacking | -11 -10 -10 -9 -9 -7 -6 -6 ------------ Run | Yrd Mat Min Mat Min Zio Pro Fac Used RIF Installer . | . . . . . . . . Robots Hacked 3 | . . . . . . . 3 Non-combat 3 | . . . . . . . 3 Combat . | . . . . . . . . Robot Hacks Applied 4 | . . . . . . . 4 find_chute 4 | . . . . . . . 4 Relay Couplers Released . | . . . . . . . . Fabnet Peak Effective % . | . . . . . . . . Robots Rewired . | . . . . . . . . Allies Hacked . | . . . . . . . . Hacks Repelled . | . . . . . . . . Allies | -11 -10 -10 -9 -9 -7 -6 -6 -------- Run | Yrd Mat Min Mat Min Zio Pro Fac Total Allies 9 | . . 3 . 2 4 . . Largest Group 4 | . . 3 3 2 4 4 3 Highest-Rated Group 159 | . . 40 40 42 159 159 118 Highest-Rated Ally 41 | . . 16 16 31 41 41 41 Total Orders . | . . . . . . . . Ally Attacks 54 | . . 20 7 2 . 15 10 Total Damage 918 | . . 200 51 41 . 411 215 Kills 18 | . . 8 1 2 . 6 1 Allies Corrupted . | . . . . . . . . Allies Melted . | . . . . . . . . Intel | -11 -10 -10 -9 -9 -7 -6 -6 ------- Run | Yrd Mat Min Mat Min Zio Pro Fac Active Infowar (turns) 9695 | 44 403 356 697 978 2635 1402 3180 Optics 8436 | . . . 285 978 2635 1402 3136 Sensors 4294 | . . . 365 . . 924 3005 Seismic 5590 | 44 403 356 696 978 2635 478 . Machine Analysis 3155 | . . . . . . . 3155 Jamming 29 | . . . . . . . 29 Robot Analysis Total . | . . . . . . . . Derelict Logs Recovered 3 | . . 1 . . 1 1 . Drone Launches . | . . . . . . . . Drone Recoveries . | . . . . . . . . Exploration | -11 -10 -10 -9 -9 -7 -6 -6 ------------- Run | Yrd Mat Min Mat Min Zio Pro Fac Turns Passed 9781 | 110 403 356 697 978 2635 1402 3200 Spaces Moved 4643 | 55 220 233 201 371 1089 581 1893 Core 30 | . . . 1 . . . 29 Treads 2089 | . . . 48 371 1089 581 . Legs 454 | 55 4 . . . . . 395 Wheels 2070 | . 216 233 152 . . . 1469 Hover . | . . . . . . . . Flight . | . . . . . . . . Fastest Speed 50 | 120 120 135 135 240 240 240 50 Average Speed 182 | 120 147 135 195 240 240 240 131 Slowest Speed 1500 | 120 175 135 1500 240 240 240 330 Overloaded Moves . | . . . . . . . . Propulsion Burnouts . | . . . . . . . . Robots Hopped . | . . . . . . . . Potential Cave-ins . | . . . . . . . . Cave-ins Triggered . | . . . . . . . . Exploration Rate (%) 52 | 4 53 50 21 88 89 70 45 Regions Visited 7 Branch Regions 4 Pre-discovered Areas 5 | . . 1 . . 4 . . Known Exits Taken . | . . . . . . . . Unknown Exits Taken 7 | 1 1 1 1 1 1 1 . Scrap Searched 8 | . . . . . 3 5 . Spaces Dug 32 | . . . . . . . 32 Terrain Destroyed 181 | . . . . . . 32 149 Melee 32 | . . . . . . . 32 Projectile . | . . . . . . . . AOE 149 | . . . . . . 32 117 Terrain Rammed . | . . . . . . . . Walls Destroyed . | . . . . . . . . Machines Disabled . | . . . . . . . . Actions | -11 -10 -10 -9 -9 -7 -6 -6 --------- Run | Yrd Mat Min Mat Min Zio Pro Fac Total 5561 | 74 260 274 433 416 1114 590 2400 Wait 481 | 2 8 35 150 13 12 2 259 Move 4636 | 54 219 232 200 370 1088 580 1893 Hop . | . . . . . . . . Pick Up 56 | . 6 5 7 4 5 3 26 Fast Attach 17 | 1 . . . . . . 16 Attach 37 | . . 2 9 1 . 1 24 Detach 8 | . . . 3 . . . 5 Swap 49 | 1 4 . 13 1 3 1 26 Drop 34 | 1 . . 1 . 6 2 24 Fire 146 | 15 23 . 50 27 . 1 30 Melee 97 | . . . . . . . 97 Ram . | . . . . . . . . Kick . | . . . . . . . . Crush . | . . . . . . . . Escape Stasis . | . . . . . . . . Rewire . | . . . . . . . . Trap . | . . . . . . . . Miscellaneous . | . . . . . . . . Route ------- -11/Scrapyard -10/Materials (discovered 2 exits: *Mat / [*Min]) -10/Mines -9/Materials -9/Mines -7/Zion -6/Proximity Caves -6/Factory (discovered 1 exit: Low) History --------- Turn | Location | Event 1 | -11/Scrapyard | Discovered new exit (range 2) 111 | -11/Scrapyard | Entered Materials 303 | -10/Materials | Discovered new exit (range 8) 311 | -10/Materials | Build established: Mutant 461 | -10/Materials | Discovered new exit (range 13) 514 | -10/Materials | Entered Mines 515 | -10/Mines | Met a Derelict bent on vengeance 551 | -10/Mines | Assisted by bots powering up and referring to "LRC-V3" 786 | -10/Mines | Found a damaged Exp. Sensor Array with a note attached 789 | -10/Mines | Found Prototype Device 838 | -10/Mines | Discovered new exit (range 10) 870 | -10/Mines | Entered Materials 870 | -9/Materials | Accompanied by 3 allies 870 | -9/Materials | Evolved 2 slots: Propulsion x1, Utility x1 870 | -9/Materials | Identified Exp. Sensor Array 1004 | -9/Materials | Lost 3 allies 1460 | -9/Materials | Discovered new exit (range 17) 1567 | -9/Materials | Entered Mines 1588 | -9/Mines | Build established: Scavenger-Mutant 2072 | -9/Mines | Found a Scrap Suit stashed away for nefarious purposes 2077 | -9/Mines | Found Scrap Suit 2287 | -9/Mines | Joined a pair of Derelicts in attacking an 0b10 outpost 2424 | -9/Mines | A Derelict revealed a hidden shortcut to a safe place 2545 | -9/Mines | Entered Zion 2545 | -7/Zion | Accompanied by 2 allies 2595 | -7/Zion | Led the pair of lost Derelicts to a safe place 2697 | -7/Zion | Learned location of Data Miner (-6) 3114 | -7/Zion | Learned location of Warlord (-4) 3958 | -7/Zion | Met Imprinter 3999 | -7/Zion | Imprinted 4001 | -7/Zion | Declared Zion's savior 4238 | -7/Zion | Given A8's code to call for help 4281 | -7/Zion | Found CR-A16's Pointy Stick 4845 | -7/Zion | Discovered new exit (range 11) 4853 | -7/Zion | Learned location of Extension (-5) 5180 | -7/Zion | Entered Proximity Caves 5180 | -6/Proximity Caves | Accompanied by 4 allies 5958 | -6/Proximity Caves | Build established: Mutant 5977 | -6/Proximity Caves | Discovered new exit (range 12) 6582 | -6/Proximity Caves | Entered Factory 6582 | -6/Factory | Accompanied by 3 allies 6582 | -6/Factory | Evolved 6 slots: Power x1, Propulsion x2, Utility x2, Weapon x1 6583 | -6/Factory | Identified exit to Lower Caves 6646 | -6/Factory | Repaired Hcp. Storage Unit 6867 | -6/Factory | Build established: Scavenger-Mutant 7096 | -6/Factory | Lost 3 allies 7146 | -6/Factory | Lost 4 parts (2p2n) 8181 | -6/Factory | Terminal network hard line cut 9299 | -6/Factory | Cargo convoy interrupted 9618 | -6/Factory | Lost 6 parts (1p3n1u1w) 9680 | -6/Factory | Spotted B-75 Beast 9697 | -6/Factory | Lost 3 parts (3n) 9745 | -6/Factory | Core integrity fell below 50% 9762 | -6/Factory | Core integrity fell below 20% 9768 | -6/Factory | Released all parts (5) 9782 | -6/Factory | Destroyed by B-75 Beast with Magnetic Acceleration Cannon Last Messages --------------- 09762_ E-15 Imp destroyed. 09762_ Destroyed Weapon Cycler. 09762_ R-10 Processor destroyed. 09763_ Penetrated by Slug. 09764_ The unstable cave ceiling collapses. 09764_ K-01 Serf collects debris. 09764_ H-66 Slayer destroyed. 09764_ Imp. Carbon-fiber Leg destroyed. 09765_ The unstable cave ceiling collapses. 09765_ K-01 Serf collects debris. 09765_ Knocked back. 09766_ P-60 Hacker destroyed. 09767_ Prc. Grenade Launcher destroyed. 09768_ K-01 Serf collects debris. 09768_ Released Imp. Hacking Suite. 09768_ Released Adv. Melee Analysis Suite. 09768_ Released Machine Analyzer. 09768_ Released Huge Storage Unit. 09768_ Released Hvy. Pick. 09770_ CJNXIZLSDM#&MGRNB|F>&,LZV56ZIZ9NF#2YJF Map ----- +----------------------------------------------------+ | ????????????# #?"?"??""?""""????"F??"""?"""?"" | | ????????????# #?"T"??""?""""??? """?"""?"""?"" | | ????????????# #?"""??G??""""??? "" """?"""?"" | | ????????????# #??????""?""""??? ?????????? | | ????????????# #??????""?""""?? ?????????? | | ????????????# #??????????????? #?????????? | | ?????######## #??????????????# #?????????? | | ?????# ! #??????????????# #?????????? | | ?????# #??????????????# ^ ^#?????????? | | ?????+ #??????????????# ^#?????????? | | ?????# """ """ #????########### #?????????? | | ?????+ """ """ #????# # #?????????? | | ?????# """ """ #????# # #?????????? | | ?????# #????# "" # #???????? | | ?????+ #????# * # #???????? | | ?????##### ###### % # #???????? | | ?????????# " # +???????? | | ?????????# ###### + #???????? | | ?????????#+## ####?# # #???????? | | ????????????# ##BB## # #???????? | | ????????????# ##BB;########### ###+##### | | ????????????# !!] | | ?????"""????# !!] | | ???"""""????# !]] | | ???"""""????+ w ^ % | | ??????????? # @ | | ?????"""?? # " " " " ## T##;##########+####### | | ???"""""? ?# " " " " ?#######???# # | | ???"""""? ?# " " " " ????????????# H/]* # | | ???????? !??# " " " " ????????????# """"" "!% # | | ????????????# " " " "?????????????# """"""!!%! | | ????????????? ?" " " "?????????????# """""""/* | | ????????????????" " " "?????????????# """""""* | | ????????????????"?" " "?????????????# * | | ????????????????"?" "?"?????????????# ! | | ????????????????????????????????????# | | ????????????????????????????????????# | | ????????????????????????????????????# "T" | | ????????????????????????????????????# """ | | ????????????????"""T"""??????????????############ | | ????????????????????????????????????????????????## | | ?????????????????????????????????????????????????# | | ?????????????????????????????????????????????????# | | ?????????????????????????????????????????????????? | | ?????????????????????????????????????????????????? | | ?????????????????????????????????????????????????? | | ?????????????????????????????????????????????????? | | ?????????????????????????????????????????????????? | | ?????????????????????????????????????????????????? | | ?????????????????????????????????????????????????? | +----------------------------------------------------+ Best States ------------- Heat Dissipation 37 Energy Generation 31 Energy Capacity 370 Matter Stores 300 Matter Capacity 300 Sight Range 18 Robot Scan Range 20 Terrain Scan Density 10 Jamming Range 12 Evasion (%) 55 Melee Accuracy 8 Recoil Reduction 3 Offensive Hacking 22 Item Schematics ----------------- Imp. Core Shielding | -7/Zion | Archive Field Propulsion Drive | -7/Zion | Archive Thermal Shield | -7/Zion | Archive Gatling Laser | -7/Zion | Archive Imp. Actuator Array | -7/Zion | Archive Lightning Gun | -7/Zion | Archive Fusion Compressor | -7/Zion | Archive Imp. Titanium Leg | -7/Zion | Archive Corruption Screen | -7/Zion | Archive Hyp. Coil Gun | -7/Zion | Archive Med. Insulated Plating | -7/Zion | Archive Adv. Heat Sink | -7/Zion | Archive Imp. Field Recycling Unit | -7/Zion | Archive Adv. Sensor Array | -7/Zion | Archive Kinecellerator | -7/Zion | Archive Robot Schematics ------------------ S-27 Virus | -7/Zion | Archive K-01 Serf | -7/Zion | Archive I-36 Angel | -7/Zion | Archive Fabricated ------------ Nothing Repaired ---------- Hcp. Storage Unit | 57% | -6/Factory Studied --------- Wheel | -6/Factory | Hacked Com. Wheel | -6/Factory | Hacked Lgt. Treads | -6/Factory | Hacked Aluminum Leg | -6/Factory | Hacked Alien Tech Used ----------------- None Achievements -------------- None Challenges ------------ None Game ------ Seed ZeronetGreatShovel Manual? 0 Play Time 00:55:39 Cumulative 51.1 hours Start 2025.12.29 @ 23:27:57 End 2025.12.30 @ 00:22:35 Sessions 1 Manual Loads 0 Difficulty Rogue Special Mode None Game No. 68 Rogue 68 Adventurer 0 Explorer 0 Win Type - Total 1 Types 1/0/0/0/0/0/0/0/0/0 Lore% 39 Gallery% 45 Achievement% 35 Wizard Run 0 Options --------- Layout 2 ASCII 0 Keyboard 1 Movement Numpad Keybinds 0 Fullscreen 2 Font 24/Smallcaps Map View 50x44 Zoom Use 0% Tactical HUD 1 Map Filters NONE Filters NONE Steam 1 RUN: 31574a0c-b900-4ecc-9427-32a31605fed3